bitfinex-derivatives/quotes_BTCF0:USTF0_20260314
["timestamp","ask_amount","ask_price","bid_price","bid_amount"]
[1773474240746,0.042519,70545.0,70535.0,0.00144]
[1773474241346,0.10968071,70545.0,70535.0,0.00144]
[1773474242543,0.042519,70545.0,70535.0,0.00144]
[1773474244042,0.042518,70547.0,70535.0,0.00144]
[1773474244548,0.10968071,70546.0,70535.0,0.00144]
[1773474245249,0.042519,70546.0,70535.0,0.00144]
[1773474245843,0.00278,70553.0,70536.0,0.07419726]
[1773474246048,0.00278,70553.0,70540.0,0.07419726]
[1773474246247,0.042516,70551.0,70540.0,0.07419726]
[1773474247143,0.042516,70551.0,70539.0,0.042523]
[1773474248143,0.04263391,70554.0,70540.0,0.042522]
[1773474248338,0.04263391,70554.0,70541.0,0.00144]
[1773474248652,0.04263391,70554.0,70541.0,0.043961]
[1773474251854,0.04263391,70554.0,70542.0,0.042521]
[1773474253652,0.00011991,70554.0,70542.0,0.042521]
[1773474254554,0.00011991,70554.0,70545.0,0.042519]
[1773474255054,0.00011991,70554.0,70543.0,0.04252]
[1773474255453,0.042511,70558.0,70541.0,0.00144]
[1773474256555,5.553e-05,70557.0,70541.0,0.00144]
[1773474256754,5.553e-05,70557.0,70547.0,0.07419726]
[1773474257056,0.00278,70559.0,70548.0,0.00144]
[1773474257255,0.00278,70559.0,70549.0,0.00144]
[1773474257458,0.00278,70559.0,70550.0,0.00144]
[1773474257654,0.00278,70559.0,70551.0,0.00144]
[1773474257848,0.00278,70559.0,70552.0,0.00144]
[1773474258944,0.06716171,70567.0,70552.0,0.00144]
[1773474259156,0.001,70559.0,70552.0,0.00144]
[1773474259545,0.042508,70564.0,70552.0,0.00144]
[1773474260257,0.042507,70566.0,70552.0,0.043955]
[1773474260458,0.06816171,70567.0,70552.0,0.00144]
[1773474261655,0.001,70564.0,70553.0,0.042514]
[1773474262164,0.042508,70565.0,70553.0,0.042514]
[1773474263053,0.06319217,70571.0,70552.0,0.00144]
[1773474263255,0.2572396,70570.0,70552.0,0.00144]
[1773474263554,0.042507,70566.0,70554.0,0.042513]
[1773474264360,0.042507,70566.0,70552.0,0.043955]
[1773474264763,0.042507,70566.0,70553.0,0.042514]
[1773474265566,0.042507,70566.0,70554.0,0.042513]
[1773474265759,0.00277,70570.0,70552.0,0.00144]
[1773474265966,0.045275,70570.0,70557.0,0.042512]
[1773474266358,0.045275,70570.0,70548.0,0.13901196]
[1773474266359,0.00277,70570.0,70560.0,0.07419726]
[1773474266560,0.00277,70570.0,70561.0,0.00144]
[1773474267667,0.00277,70570.0,70561.0,0.043949]
[1773474267869,0.00277,70570.0,70561.0,0.00144]
[1773474270675,0.042503,70572.0,70561.0,0.00144]
[1773474273476,0.042503,70573.0,70562.0,0.06170846]
[1773474273669,0.042503,70573.0,70561.0,0.00144]
[1773474276072,0.042503,70573.0,70561.0,0.043949]
[1773474284794,0.06319217,70575.0,70561.0,0.00144]
[1773474285683,0.06319217,70579.0,70561.0,0.00144]
[1773474286194,0.042503,70573.0,70561.0,0.00144]
[1773474286388,0.042503,70572.0,70561.0,0.00144]
[1773474292098,0.10303531,70571.0,70561.0,0.00144]
[1773474292891,0.06053131,70570.0,70553.0,0.13414391]
[1773474293095,0.042509,70563.0,70554.0,0.00144]
[1773474293695,0.042509,70562.0,70554.0,0.00144]
[1773474300998,0.06053131,70569.0,70545.0,0.042519]
[1773474301195,0.06053131,70559.0,70546.0,0.00144]
[1773474301395,0.06053131,70559.0,70531.0,0.00070891]
[1773474301396,0.06053131,70554.0,70547.0,0.00144]
[1773474301599,0.06053131,70554.0,70548.0,0.00144]
[1773474302200,0.10304531,70554.0,70548.0,0.00144]
[1773474302407,0.00856,70551.0,70548.0,0.00144]
[1773474303697,0.00856,70551.0,70548.0,0.00244]
[1773474304706,0.06053131,70550.0,70549.0,0.00144]
[1773474305301,0.06053131,70550.0,70541.0,0.00144]
[1773474305498,0.06053131,70550.0,70542.0,0.00288]
[1773474305700,0.06053131,70550.0,70541.0,0.00144]
[1773474305999,0.06053131,70550.0,70542.0,0.00144]
[1773474306197,0.10304831,70550.0,70542.0,0.00144]
[1773474306706,0.10304831,70550.0,70543.0,0.00144]
[1773474307308,0.06053131,70550.0,70543.0,0.00144]
[1773474307503,0.00856,70551.0,70543.0,0.00144]
[1773474309508,0.06053131,70558.0,70544.0,0.00144]
[1773474309711,0.06197131,70569.0,70544.0,0.00144]
[1773474309902,0.06053131,70567.0,70544.0,0.00144]
[1773474310212,0.06053131,70561.0,70544.0,0.00144]
[1773474310514,0.06053131,70561.0,70549.0,0.00144]
[1773474310705,0.06053131,70561.0,70550.0,0.00144]
[1773474311108,0.042513,70556.0,70550.0,0.00144]
[1773474312412,0.042513,70555.0,70550.0,0.00144]
[1773474312610,0.042513,70555.0,70550.0,0.00288]
[1773474314107,0.10304431,70555.0,70550.0,0.00288]
[1773474314312,0.10404431,70555.0,70550.0,0.00288]
[1773474316514,0.06053131,70554.0,70550.0,0.00288]
[1773474318714,0.06153131,70554.0,70550.0,0.00288]
[1773474319514,0.001,70554.0,70550.0,0.00288]
[1773474319815,0.042512,70557.0,70550.0,0.00288]
[1773474320515,0.042513,70556.0,70550.0,0.00288]
[1773474320713,0.042513,70556.0,70550.0,0.00144]
[1773474321818,0.001,70554.0,70550.0,0.00144]
[1773474322219,0.043513,70556.0,70550.0,0.00288]
[1773474322420,0.043513,70556.0,70550.0,0.00432]
[1773474322721,0.042513,70556.0,70550.0,0.00432]
[1773474323021,0.001,70554.0,70550.0,0.00432]
[1773474323216,0.042513,70556.0,70550.0,0.00432]
[1773474323520,0.043513,70556.0,70550.0,0.00432]
[1773474324110,0.042513,70555.0,70542.0,0.042521]
[1773474324419,0.042513,70555.0,70543.0,0.00144]
[1773474325711,0.00855,70562.0,70536.0,0.042524]
[1773474325918,0.05619836,70548.0,70540.0,0.00144]
[1773474326814,0.09871636,70547.0,70526.0,0.05502716]
[1773474327017,0.05619836,70547.0,70532.0,0.00144]
[1773474327417,0.042519,70546.0,70533.0,0.042526]
[1773474327616,0.042519,70546.0,70534.0,0.00144]
[1773474328122,0.09871736,70546.0,70535.0,0.00144]
[1773474328520,0.09871736,70546.0,70533.0,0.042526]
[1773474328720,0.09871736,70546.0,70536.0,0.00144]
[1773474328921,0.05619836,70544.0,70537.0,0.00144]
[1773474330224,0.05619836,70541.0,70537.0,0.00144]
[1773474330424,0.05619836,70541.0,70538.0,0.00144]
[1773474330624,0.05619836,70541.0,70539.0,0.00144]
[1773474330921,0.05619836,70544.0,70504.0,0.05502716]
[1773474331224,0.05619836,70539.0,70511.0,0.00144]
[1773474331524,0.04253,70527.0,70512.0,0.042539]
[1773474331924,0.00010223,70526.0,70512.0,0.042539]
[1773474332415,0.042532,70524.0,70511.0,0.00144]
[1773474332620,0.09883159,70526.0,70513.0,0.042538]
[1773474332820,0.05630059,70526.0,70513.0,0.042538]
[1773474333021,0.00010223,70526.0,70513.0,0.042538]
[1773474334716,0.00010223,70526.0,70513.0,0.045538]
[1773474334916,0.00010223,70526.0,70513.0,0.046538]
[1773474335524,0.00010223,70526.0,70514.0,0.042537]
[1773474335919,0.00010223,70526.0,70513.0,0.004]
[1773474336625,0.00010223,70526.0,70514.0,0.00144]
[1773474337218,0.00010223,70526.0,70514.0,0.00544]
[1773474338120,0.00010223,70526.0,70510.0,0.13471674]
[1773474338328,0.04263323,70526.0,70512.0,0.042539]
[1773474338524,0.04263323,70526.0,70514.0,0.05502716]
[1773474339228,0.00010223,70526.0,70514.0,0.05502716]
[1773474339431,0.04263323,70526.0,70514.0,0.05502716]
[1773474340024,0.00010223,70526.0,70514.0,0.05502716]
[1773474340224,0.00110223,70526.0,70515.0,0.05502716]
[1773474340423,0.00110223,70526.0,70516.0,0.05502716]
[1773474340823,0.042529,70530.0,70516.0,0.05502716]
[1773474341031,0.05619836,70553.0,70530.0,0.05502716]
[1773474341226,0.042521,70542.0,70531.0,0.05646716]
[1773474341421,0.042523,70540.0,70532.0,0.00144]
[1773474342124,0.042522,70541.0,70532.0,0.00144]
[1773474342431,0.042523,70540.0,70527.0,0.04253]
[1773474342620,0.00478,70547.0,70498.0,0.047547]
[1773474342621,0.042524,70538.0,70528.0,0.00144]
[1773474342827,0.042524,70538.0,70529.0,0.00144]
[1773474343028,0.042524,70538.0,70525.0,0.042531]
[1773474343219,0.042524,70538.0,70526.0,0.00144]
[1773474343624,0.043524,70538.0,70527.0,0.00144]
[1773474344037,0.001,70538.0,70527.0,0.00144]
[1773474345029,0.042522,70540.0,70527.0,0.00144]
[1773474345530,0.042522,70540.0,70526.0,0.04253]
[1773474345732,0.042522,70540.0,70527.0,0.00144]
[1773474345928,0.042523,70539.0,70527.0,0.00144]
[1773474346129,0.042523,70539.0,70528.0,0.00144]
[1773474346530,0.042523,70539.0,70524.0,0.042532]
[1773474346732,0.042523,70539.0,70525.0,0.00144]
[1773474347134,0.042523,70539.0,70522.0,0.05502716]
[1773474347135,0.001,70539.0,70526.0,0.00144]
[1773474347736,0.0742465,70540.0,70526.0,0.00144]
[1773474347935,0.05800592,70542.0,70526.0,0.00144]
[1773474348438,0.042525,70536.0,70523.0,0.042532]
[1773474348634,0.00478,70546.0,70524.0,0.00144]
[1773474348635,0.042527,70533.0,70524.0,0.00144]
[1773474348836,0.042525,70535.0,70525.0,0.00144]
[1773474349337,0.05800592,70539.0,70525.0,0.00144]
[1773474349836,0.05900592,70539.0,70525.0,0.00144]
[1773474350240,0.042521,70543.0,70530.0,0.042528]
[1773474350435,0.001,70539.0,70527.0,0.05385145]
[1773474350944,0.043523,70539.0,70527.0,0.05385145]
[1773474351434,0.042523,70539.0,70527.0,0.05385145]
[1773474351638,0.042523,70539.0,70528.0,0.00144]
[1773474352139,0.01836158,70526.0,70515.0,0.00144]
[1773474352438,0.09261819,70530.0,70516.0,0.00144]
[1773474352638,0.09261819,70530.0,70517.0,0.00144]
[1773474352840,0.09261819,70530.0,70518.0,0.00144]
[1773474353034,0.09261819,70530.0,70519.0,0.00144]
[1773474353338,0.042534,70520.0,70515.0,0.001]
[1773474353540,0.042534,70520.0,70516.0,0.00144]
[1773474357135,0.043534,70520.0,70516.0,0.00144]
[1773474357335,0.043534,70520.0,70517.0,0.00144]
[1773474357536,0.043534,70520.0,70518.0,0.00144]
[1773474357729,0.001,70520.0,70519.0,0.00144]
[1773474357933,0.043534,70520.0,70519.0,0.00144]
[1773474358334,0.043534,70520.0,70511.0,0.05476114]
[1773474358532,0.043534,70520.0,70515.0,0.00432]
[1773474360148,0.042534,70520.0,70515.0,0.00432]
[1773474360439,0.042536,70517.0,70512.0,0.00144]
[1773474361041,0.042536,70517.0,70513.0,0.00144]
[1773474361241,0.042536,70517.0,70514.0,0.00144]
[1773474361546,0.042536,70517.0,70515.0,0.00144]
[1773474361739,0.042536,70517.0,70516.0,0.00144]
[1773474362146,0.042537,70516.0,70506.0,0.05683276]
[1773474362342,0.042536,70518.0,70507.0,0.00144]
[1773474363444,0.042536,70518.0,70506.0,0.042542]
[1773474363643,0.00478,70529.0,70490.0,0.07495561]
[1773474363644,0.01107072,70514.0,70490.0,0.00214911]
[1773474363836,0.042544,70505.0,70494.0,0.05688533]
[1773474365047,0.01281439,70519.0,70500.0,0.05688587]
[1773474365245,0.01281439,70519.0,70490.0,0.07639561]
[1773474365246,0.04254,70511.0,70502.0,0.05688587]
[1773474365545,0.04254,70511.0,70503.0,0.00144]
[1773474366151,0.0742465,70520.0,70496.0,0.09957593]
[1773474366346,0.0742465,70513.0,70497.0,0.00144]
[1773474366742,0.001,70511.0,70497.0,0.00144]
[1773474367243,0.0742465,70513.0,70497.0,0.00144]
[1773474367450,0.042541,70509.0,70497.0,0.00144]
[1773474367650,0.042541,70509.0,70497.0,0.05880787]
[1773474369754,0.0742465,70513.0,70494.0,0.05692372]
[1773474369952,0.0742465,70513.0,70495.0,0.00144]
[1773474370149,0.0742465,70513.0,70495.0,0.10091272]
[1773474370349,0.042542,70508.0,70495.0,0.043989]
[1773474370754,0.042542,70507.0,70495.0,0.043989]
[1773474371450,0.042542,70507.0,70495.0,0.042549]
[1773474371655,0.042542,70507.0,70496.0,0.00144]
[1773474373043,0.042542,70507.0,70496.0,0.00244]
[1773474373560,0.042542,70507.0,70496.0,0.001]
[1773474373760,0.042542,70507.0,70497.0,0.00144]
[1773474374062,0.00144,70535.0,70505.0,0.0550992]
[1773474374260,0.25217874,70528.0,70507.0,0.0550992]
[1773474374559,0.042534,70521.0,70509.0,0.0550977]
[1773474374955,0.042535,70520.0,70509.0,0.0550977]
[1773474375261,0.01830738,70532.0,70509.0,0.0550977]
[1773474375956,0.042535,70519.0,70509.0,0.0550977]
[1773474377156,0.001,70519.0,70509.0,0.0550977]
[1773474377345,0.00478,70529.0,70514.0,0.042538]
[1773474377545,0.001,70519.0,70517.0,0.05464221]
[1773474377754,0.01885708,70545.0,70524.0,0.05464221]
[1773474377954,0.25236812,70544.0,70525.0,0.05608221]
[1773474378149,0.0742465,70540.0,70527.0,0.05464221]
[1773474378350,0.0742465,70550.0,70528.0,0.05463173]
[1773474378657,0.25241439,70549.0,70528.0,0.05463173]
[1773474378850,0.25241439,70548.0,70528.0,0.05463173]
[1773474379050,0.25241439,70547.0,70528.0,0.05463173]
[1773474379256,0.0742465,70550.0,70531.0,0.05463173]
[1773474379456,0.25240715,70549.0,70533.0,0.05466472]
[1773474379755,0.25240915,70548.0,70534.0,0.00144]
[1773474379955,0.00478,70535.0,70534.0,0.00144]
[1773474380153,0.04252,70544.0,70534.0,0.05610472]
[1773474380551,0.001,70549.0,70534.0,0.05610472]
[1773474380752,0.001,70549.0,70537.0,0.05440657]
[1773474381959,0.042517,70550.0,70537.0,0.05440657]
[1773474382154,0.001,70544.0,70537.0,0.05440657]
[1773474382361,0.042517,70550.0,70537.0,0.05440657]
[1773474382861,0.001,70549.0,70537.0,0.05440657]
[1773474383254,0.042516,70550.0,70537.0,0.05640657]
[1773474383458,0.1167625,70550.0,70537.0,0.05640657]
[1773474383760,0.1167625,70550.0,70537.0,0.05440657]
[1773474383968,0.001,70549.0,70537.0,0.05440657]
[1773474384758,0.001,70549.0,70537.0,0.09693057]
[1773474385065,0.047295,70552.0,70538.0,0.05350221]
[1773474385267,0.042516,70551.0,70538.0,0.05350221]
[1773474385461,0.001,70550.0,70538.0,0.05350221]
[1773474385966,0.042516,70551.0,70538.0,0.05350221]
[1773474386166,0.047295,70552.0,70538.0,0.05350221]
[1773474386561,0.001,70550.0,70538.0,0.05350221]
[1773474387660,0.042516,70551.0,70538.0,0.05350221]
[1773474392768,0.00478,70552.0,70539.0,0.042523]
[1773474392960,0.00478,70552.0,70541.0,0.0532862]
[1773474395671,0.047295,70552.0,70541.0,0.0532862]
[1773474396164,0.042516,70551.0,70541.0,0.0532862]
[1773474397573,0.00478,70552.0,70541.0,0.0532862]
[1773474397574,0.042517,70550.0,70541.0,0.0532862]
[1773474398274,0.0742465,70551.0,70532.0,0.00765]
[1773474398574,0.0742465,70551.0,70533.0,0.00144]
[1773474398778,0.0742465,70551.0,70533.0,0.05327412]
[1773474399071,0.0742465,70551.0,70534.0,0.05471412]
[1773474399471,0.0742465,70551.0,70534.0,0.05327412]
[1773474399675,0.0742465,70551.0,70535.0,0.00144]
[1773474400270,0.00501,70546.0,70535.0,0.00144]
[1773474400569,0.00501,70546.0,70536.0,0.00144]
[1773474400874,0.042522,70542.0,70536.0,0.00144]
[1773474403676,0.042522,70542.0,70536.0,0.00344]
[1773474403975,0.042522,70542.0,70536.0,0.00544]
[1773474405073,0.042522,70541.0,70537.0,0.00144]
[1773474405382,0.042522,70541.0,70538.0,0.00144]
[1773474405683,0.042522,70541.0,70539.0,0.00144]
[1773474405881,0.042522,70541.0,70540.0,0.00144]
[1773474406079,0.042523,70539.0,70536.0,8e-07]
[1773474406382,0.042523,70539.0,70537.0,0.00144]
[1773474406583,0.042523,70539.0,70538.0,0.00144]
[1773474407084,0.042525,70536.0,70527.0,0.14194065]
[1773474407278,0.042525,70536.0,70528.0,0.00144]
[1773474407985,0.07421484,70540.0,70529.0,0.00144]
[1773474408386,0.042526,70534.0,70530.0,0.00144]
[1773474408586,0.042526,70534.0,70531.0,0.00144]
[1773474408785,0.042526,70534.0,70532.0,0.00144]
[1773474408984,0.042526,70534.0,70533.0,0.00144]
[1773474410085,0.043526,70534.0,70533.0,0.00144]
[1773474411680,0.042526,70534.0,70523.0,0.05327412]
[1773474411879,0.042526,70534.0,70525.0,0.00144]
[1773474412079,0.043526,70534.0,70525.0,0.00144]
[1773474412984,0.042526,70534.0,70525.0,0.00144]
[1773474415289,0.042527,70533.0,70525.0,0.00144]
[1773474415587,0.042527,70532.0,70525.0,0.00144]
[1773474416381,0.042526,70534.0,70526.0,0.00144]
[1773474416786,0.042526,70534.0,70525.0,0.002]
[1773474416985,0.042526,70534.0,70527.0,0.00144]
[1773474419189,0.042526,70534.0,70528.0,0.00144]
[1773474420391,0.07421484,70540.0,70528.0,0.00144]
[1773474420392,0.042527,70533.0,70528.0,0.00144]
[1773474420791,0.0569931,70538.0,70526.0,0.00144]
[1773474421086,0.07421484,70536.0,70526.0,0.00144]
[1773474421285,0.07421484,70530.0,70526.0,0.00144]
[1773474421490,0.042531,70526.0,70515.0,0.00795]
[1773474421692,0.042531,70526.0,70518.0,0.00288]
[1773474422191,0.026531,70526.0,70518.0,0.00288]
[1773474423194,0.042532,70525.0,70518.0,0.00488]
[1773474423595,0.042532,70525.0,70519.0,0.00144]
[1773474424594,0.07421484,70530.0,70519.0,0.00144]
[1773474425391,0.042532,70525.0,70519.0,0.00144]
[1773474430792,0.042532,70524.0,70519.0,0.00144]
[1773474431488,0.042531,70526.0,70514.0,0.14647784]
[1773474431798,0.042531,70526.0,70520.0,0.00144]
[1773474431999,0.042531,70526.0,70521.0,0.00144]
[1773474434000,0.043531,70526.0,70521.0,0.00144]
[1773474434694,0.042531,70526.0,70521.0,0.00144]
[1773474439691,0.043531,70526.0,70521.0,0.00144]
[1773474440097,0.044531,70526.0,70521.0,0.00144]
[1773474441608,0.043531,70526.0,70521.0,0.00144]
[1773474442206,0.042531,70526.0,70521.0,0.00144]
[1773474444204,0.0569931,70535.0,70521.0,0.00144]
[1773474444411,0.00501,70546.0,70522.0,0.0512838]
[1773474444601,0.00501,70546.0,70531.0,0.0512838]
[1773474444907,0.00501,70546.0,70535.0,0.0512838]
[1773474445109,0.00501,70546.0,70538.0,0.00288]
[1773474445497,0.04252,70544.0,70538.0,0.00288]
[1773474445700,0.04252,70544.0,70536.0,0.00144]
[1773474446311,0.001,70546.0,70536.0,0.00144]
[1773474446618,0.001,70546.0,70539.0,0.00288]
[1773474446911,0.002,70544.0,70539.0,0.00288]
[1773474447107,0.04452,70544.0,70539.0,0.00288]
[1773474447912,0.04352,70544.0,70539.0,0.00288]
[1773474448204,0.04252,70544.0,70539.0,0.00288]
[1773474448614,0.044519,70546.0,70539.0,0.00288]
[1773474448815,0.04252,70545.0,70539.0,0.00288]
[1773474449112,0.001,70544.0,70539.0,0.00288]
[1773474449313,0.002,70544.0,70539.0,0.00288]
[1773474449911,0.04452,70545.0,70539.0,0.00288]
[1773474450404,0.001,70544.0,70539.0,0.00288]
[1773474450915,0.04352,70545.0,70539.0,0.00288]
[1773474451117,0.04452,70545.0,70539.0,0.00288]
[1773474451614,0.001,70544.0,70539.0,0.00288]
[1773474452304,0.04352,70545.0,70539.0,0.00288]
[1773474452510,0.001,70544.0,70539.0,0.00288]
[1773474453008,0.04352,70545.0,70539.0,0.00288]
[1773474453213,0.002,70544.0,70539.0,0.00288]
[1773474453717,0.04252,70545.0,70539.0,0.00288]
[1773474454216,0.042519,70546.0,70539.0,0.00288]
[1773474454618,0.001,70545.0,70539.0,0.00288]
[1773474455514,0.043519,70546.0,70539.0,0.00288]
[1773474455710,0.001,70545.0,70539.0,0.00288]
[1773474456114,0.043519,70546.0,70539.0,0.00288]
[1773474456322,0.002,70545.0,70539.0,0.00288]
[1773474457320,0.001,70545.0,70539.0,0.00288]
[1773474457615,0.04352,70545.0,70539.0,0.00288]
[1773474457816,0.04252,70545.0,70539.0,0.00288]
[1773474458919,0.001,70545.0,70539.0,0.00288]
[1773474459221,0.042515,70552.0,70545.0,0.00288]
[1773474459416,0.042515,70552.0,70546.0,0.00144]
[1773474459914,0.054541,70559.0,70546.0,0.00144]
[1773474460120,0.042516,70550.0,70546.0,0.00144]
[1773474460412,0.054541,70559.0,70547.0,0.00144]
[1773474460620,0.001,70552.0,70548.0,0.00144]
[1773474460815,0.001,70552.0,70549.0,0.00144]
[1773474461019,0.042517,70549.0,70544.0,0.009]
[1773474461221,0.042517,70549.0,70545.0,0.00144]
[1773474461723,0.001,70552.0,70545.0,0.00144]
[1773474462116,0.001,70550.0,70545.0,0.00144]
[1773474462616,0.001,70549.0,70545.0,0.00144]
[1773474464824,0.042515,70552.0,70545.0,0.00144]
[1773474464825,0.042515,70552.0,70545.0,0.0527238]
[1773474465023,0.042515,70552.0,70545.0,0.00144]
[1773474466624,0.043515,70552.0,70545.0,0.00144]
[1773474467226,0.044515,70552.0,70545.0,0.00144]
[1773474468926,0.042516,70551.0,70545.0,0.00144]
[1773474470931,0.043516,70551.0,70545.0,0.00144]
[1773474481541,0.001,70551.0,70537.0,0.04875216]
[1773474481848,0.04969192,70549.0,70538.0,0.00144]
[1773474482044,0.04969192,70549.0,70527.0,0.04931502]
[1773474482045,0.04969192,70549.0,70539.0,0.00144]
[1773474482248,0.04969192,70549.0,70540.0,0.00144]
[1773474482441,0.04969192,70549.0,70541.0,0.00144]
[1773474482748,0.04969192,70549.0,70542.0,0.00144]
[1773474482948,0.04252,70545.0,70543.0,0.00144]
[1773474483146,0.04252,70545.0,70544.0,0.00144]
[1773474483342,0.04252,70545.0,70533.0,0.00576]
[1773474483542,0.04252,70545.0,70534.0,0.00144]
[1773474483747,0.04252,70545.0,70538.0,0.00432]
[1773474484353,0.04352,70545.0,70538.0,0.00432]
[1773474484850,0.001,70545.0,70533.0,0.00576]
[1773474485045,0.05069192,70545.0,70534.0,0.00144]
[1773474485254,0.042522,70541.0,70534.0,0.00144]
[1773474485450,0.042522,70541.0,70535.0,0.00144]
[1773474485949,0.042522,70541.0,70536.0,0.00144]
[1773474491955,0.042523,70540.0,70536.0,0.00144]
[1773474492752,0.042523,70538.0,70537.0,0.00144]
[1773474493250,0.042523,70540.0,70526.0,0.04253]
[1773474493452,0.042523,70539.0,70526.0,0.04253]
[1773474493652,0.042523,70539.0,70527.0,0.04397]
[1773474493956,0.042523,70539.0,70527.0,0.04253]
[1773474494145,0.042523,70539.0,70528.0,0.00144]
[1773474496548,0.12388506,70540.0,70525.0,0.14593264]
[1773474496747,0.04969192,70539.0,70526.0,0.00144]
[1773474496944,0.09221792,70535.0,70527.0,0.00144]
[1773474497153,0.09221792,70535.0,70528.0,0.00144]
[1773474497343,0.042526,70535.0,70528.0,0.00144]
[1773474497547,0.042526,70535.0,70528.0,0.00344]
[1773474497753,0.042526,70535.0,70528.0,0.00444]
[1773474498253,0.042526,70535.0,70528.0,0.00244]
[1773474498854,0.043526,70535.0,70528.0,0.00144]
[1773474499656,0.042526,70535.0,70528.0,0.00144]
[1773474499855,0.043526,70535.0,70528.0,0.00144]
[1773474501454,0.042521,70542.0,70530.0,0.042528]
[1773474502354,0.042521,70542.0,70511.0,0.042539]
[1773474502355,0.042524,70538.0,70508.0,0.05726213]
[1773474502559,0.09245093,70530.0,70512.0,0.042539]
[1773474503356,0.042532,70525.0,70513.0,0.00144]
[1773474503554,0.042532,70524.0,70513.0,0.00144]
[1773474503962,0.042531,70526.0,70513.0,0.043978]
[1773474505066,0.042531,70526.0,70513.0,0.045978]
[1773474505762,0.00501,70535.0,70516.0,0.05226213]
[1773474506062,0.042529,70530.0,70517.0,0.042536]
[1773474507850,0.042529,70529.0,70517.0,0.042536]
[1773474509757,0.07419314,70530.0,70518.0,0.042535]
[1773474509958,0.042527,70533.0,70518.0,0.042535]
[1773474509959,0.042527,70533.0,70519.0,0.05370213]
[1773474510157,0.042527,70532.0,70519.0,0.05370213]
[1773474511257,0.047536,70535.0,70519.0,0.05370213]
[1773474511759,0.047536,70535.0,70523.0,0.042532]
[1773474511961,0.047536,70535.0,70523.0,0.09479413]
[1773474512661,0.00501,70535.0,70524.0,0.042532]
[1773474512959,0.00501,70535.0,70526.0,0.05226213]
[1773474513162,0.00501,70535.0,70527.0,0.00144]
[1773474513361,0.00501,70535.0,70528.0,0.00144]
[1773474513766,0.042526,70534.0,70528.0,0.00144]
[1773474515564,0.00501,70535.0,70528.0,0.00144]
[1773474525069,0.01640076,70547.0,70532.0,0.042527]
[1773474525272,0.042521,70543.0,70531.0,0.042527]
[1773474526366,0.043521,70543.0,70531.0,0.042527]
[1773474527475,0.044521,70543.0,70531.0,0.042527]
[1773474528066,0.044521,70543.0,70532.0,0.042527]
[1773474528864,0.043521,70543.0,70532.0,0.042527]
[1773474529175,0.001,70543.0,70528.0,0.00144]
[1773474529380,0.0742376,70540.0,70528.0,0.043969]
[1773474529565,0.01486842,70545.0,70528.0,0.043969]
[1773474530980,0.042522,70540.0,70528.0,0.043969]
[1773474534277,0.0096,70546.0,70530.0,0.04822541]
[1773474534881,0.0742376,70550.0,70530.0,0.04822541]
[1773474535384,0.0742376,70550.0,70531.0,0.00518]
[1773474535581,0.0742376,70550.0,70533.0,0.042526]
[1773474535781,0.0742376,70550.0,70533.0,0.09074058]
[1773474535976,0.042519,70546.0,70534.0,0.09073958]
[1773474536377,0.042519,70546.0,70535.0,0.04965458]
[1773474536778,0.00955,70547.0,70535.0,0.09217958]
[1773474537081,0.052068,70547.0,70535.0,0.09217958]
[1773474537282,0.001,70546.0,70535.0,0.09217958]
[1773474538377,0.002,70546.0,70535.0,0.09217958]
[1773474538584,0.002,70546.0,70535.0,0.04965458]
[1773474538785,0.001,70546.0,70535.0,0.04965458]
[1773474539680,0.002,70546.0,70535.0,0.04965458]
[1773474544087,0.052068,70547.0,70535.0,0.04965458]
[1773474544290,0.050628,70547.0,70536.0,0.04807213]
[1773474545693,0.051628,70547.0,70536.0,0.04807213]
[1773474545992,0.00911,70547.0,70537.0,0.042524]
[1773474546196,0.00911,70547.0,70537.0,0.09060573]
[1773474546384,0.00811,70547.0,70537.0,0.09060573]
[1773474547693,0.00811,70547.0,70537.0,0.04808173]
[1773474548391,0.042516,70550.0,70537.0,0.04808173]
[1773474549390,0.042516,70550.0,70538.0,0.042523]
[1773474549594,0.042516,70550.0,70539.0,0.04809626]
[1773474549798,0.042517,70549.0,70539.0,0.04809626]
[1773474551298,0.043517,70549.0,70539.0,0.04809626]
[1773474551997,0.044517,70549.0,70539.0,0.04809626]
[1773474552196,0.043517,70549.0,70539.0,0.04809626]
[1773474554004,0.042517,70549.0,70539.0,0.04809626]
[1773474554404,0.009,70558.0,70543.0,0.0482047]
[1773474554598,0.042515,70552.0,70544.0,0.00144]
[1773474554998,0.042515,70552.0,70544.0,0.04964795]
[1773474555202,0.042514,70554.0,70544.0,0.04964795]
[1773474555805,0.009,70558.0,70544.0,0.04964795]
[1773474556108,0.0742376,70570.0,70549.0,0.04821049]
[1773474556606,0.04251,70561.0,70550.0,0.04822154]
[1773474556904,0.001,70552.0,70540.0,0.09074354]
[1773474557209,0.001,70552.0,70542.0,0.042521]
[1773474557405,0.001,70552.0,70551.0,0.00951]
[1773474557607,0.042513,70555.0,70551.0,0.01095]
[1773474558506,0.001,70554.0,70551.0,0.01095]
[1773474559010,0.042513,70555.0,70551.0,0.01095]
[1773474559212,0.043513,70555.0,70551.0,0.01095]
[1773474559406,0.043513,70555.0,70542.0,0.042521]
[1773474559612,0.042514,70553.0,70541.0,0.04822154]
[1773474559813,0.08215028,70560.0,70542.0,0.00144]
[1773474560109,0.08215028,70560.0,70541.0,0.04822154]
[1773474560309,0.08215028,70560.0,70542.0,0.00144]
[1773474560310,0.00760123,70559.0,70542.0,0.00144]
[1773474560610,0.042517,70550.0,70543.0,0.00144]
[1773474560811,0.042517,70550.0,70544.0,0.00144]
[1773474561014,0.042517,70550.0,70545.0,0.00144]
[1773474562014,0.001,70555.0,70546.0,0.00144]
[1773474562407,0.00665427,70556.0,70546.0,0.00144]
[1773474562809,0.0752376,70560.0,70546.0,0.00144]